[Event "1000GM Schev-G5 April 2024"]
[Site "Santa Clara"]
[Date "2024.04.22"]
[Round "5.2"]
[White "Solis Castro, Angel Alejan"]
[Black "Yuan, Serena"]
[Result "1/2-1/2"]
[ECO "A14"]
[WhiteElo "2066"]
[BlackElo "1867"]
[Annotator "TA"]
[PlyCount "152"]
[EventDate "2024.03.06"]
[EventType "schev"]
[EventCountry "USA"]
[SourceTitle "playchess.com"]
[Source "ChessBase"]
[SourceQuality "1"]
[TimeControl "5400+30"]

{[%evp 13,151,-10,-9,-14,0,4,11,0,0,-8,0,-8,0,-7,0,0,0,-25,0,0,11,-2,25,18,23,12,5,0,0,0,0,-17,-6,-7,11,8,7,5,7,12,8,9,2,0,2,3,12,17,14,0,0,0,0,-22,7,6,18,13,67,73,74,73,75,75,85,84,89,77,125,103,93,91,149,151,156,153,252,266,272,262,271,272,772,490,490,490,865,836,909,868,828,785,846,832,1012,916,29954,29957,29957,29956,29961,29963,29963,29965,29965,29964,29937,29948,10420,59,64,64,64,64,64,64,64,51,51,0,0,0,0,0,0,0,0,0,0,0,0,0,0,0,0,0,0,0,0,0]} 1. c4 {[%emt 0:02:15]} e6 {[%emt 0:00:07]} 2. g3 {[%emt 0:00:53]} d5 {[%emt 0:00:24]} 3. Bg2 {[%emt 0:00:10]} Nf6 {[%emt 0:00:29]} 4. Nf3 {[%emt 0:00:30]} Be7 {[%emt 0:00:34]} 5. O-O {[%emt 0:00:19]} O-O {[%emt 0:00:13]} 6. b3 {[%emt 0:00:22]} c5 {[%emt 0:01:03]} 7. d3 {[%emt 0:01:07]} Nc6 {[%emt 0:01:47]} 8. e3 {[%emt 0:00:53]} Qc7 {[%emt 0:01:39]} 9. Bb2 {[%emt 0:01:54]} b6 {[%emt 0:01:20]} 10. a3 {[%emt 0:00:33]} Bb7 {[%emt 0:01:55]} 11. Nbd2 {[%emt 0:00:22]} Rfd8 {[%emt 0:01:16]} 12. Rc1 {[%emt 0:01:07]} Rac8 {[%emt 0:02:18]} 13. Qc2 {[%emt 0:00:24]} Qb8 {[%emt 0:03:01]} 14. Rfd1 {[%emt 0:00:33]} h6 {[%emt 0:01:57]} 15. Qb1 {[%emt 0:01:48]} Ne8 {[%emt 0:07:25]} 16. cxd5 {[%emt 0:03:17]} exd5 {[%emt 0:00:24]} 17. Qa1 {[%emt 0:00:38]} Bf6 {[%emt 0:01:43]} 18. d4 {[%emt 0:00:44]} Ne7 {[%emt 0:06:09]} 19. Bh3 {[%emt 0:03:03]} Rc7 {[%emt 0:02:12]} 20. Ne5 {[%emt 0:02:04]} Bc8 {[%emt 0:08:33]} 21. Bg2 {[%emt 0:02:16]} Bf5 {[%emt 0:03:29]} 22. dxc5 {[%emt 0:01:48]} bxc5 {[%emt 0:05:46]} 23. e4 {[%emt 0:07:06]} Be6 {[%emt 0:12:20]} 24. exd5 {[%emt 0:03:48]} Bxd5 {[%emt 0:02:07]} 25. Ne4 {[%emt 0:00:12]} Bxb3 {[%emt 0:04:47]} (25... Qxb3 {is more complex.} 26. Rxc5 Rxc5 27. Nxc5 Qc2) 26. Rxd8 {[%emt 0:00:31]} Qxd8 {[%emt 0:00:08]} 27. Nxc5 {[%emt 0:00:25]} Bd5 {[%emt 0:02:18] [#] White must now prevent ...Bxg2.} 28. Ne4 {[%emt 0:03:05]} Rxc1+ {[%emt 0:01:59]} 29. Qxc1 {[%emt 0:00:09]} Qa8 {[%emt 0:08:10]} 30. Nxf6+ {[%emt 0:00:21]} Nxf6 {[%emt 0:00:11]} 31. Bh3 {[%emt 0:02:08]} Qb7 {[%emt 0:02:28]} 32. Bd4 {[%emt 0:07:53]} Ne4 {[%emt 0:03:59]} 33. f4 {[%emt 0:00:31] Prevents Ng5.} Nd6 {[%emt 0:01:40]} 34. Qb2 {[%emt 0:03:33] White wants to play Qxb7.} Qxb2 {[%emt 0:01:30]} (34... Qa6 {seems wilder.} 35. Ng4 Nef5 36. Bxg7 Nc4) 35. Bxb2 {[%emt 0:00:06]} Nc4 {[%emt 0:01:54]} (35... f6 $11 36. Nd3 Nc4) 36. Nxc4 $14 {[%emt 0:00:40]} Bxc4 {[%emt 0:00:02][%mdl 4096] Endgame. KBB-KBN} 37. Bd4 {[%emt 0:00:22][%cal Bb2d4,Bd4c5,Bc5b4][%mdl 32]} Nc6 {[%emt 0:01:05]} 38. Bc5 {[%emt 0:00:07]} a6 {[%emt 0:00:18]} 39. Kf2 {[%emt 0:01:11]} f6 {[%emt 0:00:38]} 40. Bd7 {[%emt 0:00:30]} Na5 {[%emt 0:00:37]} ({Better is} 40... Bd5) 41. f5 {[%emt 0:03:45]} Kf7 {[%emt 0:01:20]} 42. Bb4 {[%emt 0:04:50]} Nb3 {[%emt 0:00:27]} (42... Nb7 $142) 43. Ke3 $16 {[%emt 0:01:03]} g6 {[%emt 0:01:28]} 44. g4 {[%emt 0:00:50]} h5 {[%emt 0:01:48]} (44... gxf5 $16 {might work better.} 45. gxf5 (45. Bxf5 a5 $16) 45... Kg7) 45. fxg6+ $18 {[%emt 0:02:29]} Kxg6 {[%emt 0:00:15] [#]} 46. Be8+ $1 {[%emt 0:00:11]} Kg5 {[%emt 0:02:22]} 47. gxh5 {[%emt 0:00:25] Threatens to win with Bg6.} ({Resist} 47. Bxh5 $6 Be6 48. a4 a5 $18) 47... Bg8 $2 {[%emt 0:01:18]} (47... Kh6 48. a4 (48. Bf8+ Kh7 $18) 48... a5) 48. Be7 {[%emt 0:01:37]} Na5 {[%emt 0:01:29]} 49. h4+ {[%emt 0:03:05]} Kf5 {[%emt 0:02:07]} (49... Kg4 $142 50. Bxf6 Nc4+ 51. Kd4 Kf5) 50. Bg6+ {[%emt 0:00:32]} Ke6 {[%emt 0:00:27]} 51. Bb4 {[%emt 0:00:47]} Nc4+ {[%emt 0:00:34]} 52. Kf4 {[%emt 0:01:00]} Ne5 {[%emt 0:01:19]} 53. Bf5+ {[%emt 0:00:26]} Kf7 {[%emt 0:00:11]} 54. Bc3 {[%emt 0:00:41] A strong pair of Bishops.} Kg7 {[%emt 0:01:52]} 55. Bxe5 {[%emt 0:03:35]} fxe5+ {[%emt 0:00:04]} 56. Kxe5 {[%emt 0:00:16] KB-KB} Kh6 {[%emt 0:00:43]} 57. Bg4 {[%emt 0:00:09]} Bc4 {[%emt 0:00:45]} 58. Kd4 {[%emt 0:00:17]} Bb5 {[%emt 0:00:21]} 59. Kc5 {[%emt 0:00:13]} Bd3 {[%emt 0:00:30]} 60. Kb6 {[%emt 0:00:13]} Bb5 {[%emt 0:00:35]} 61. Bc8 $2 {[%emt 0:01:05]} (61. Ka5 $18 Bd3 62. Kb4) 61... Kxh5 {[%emt 0:00:08]} 62. Bxa6 {[%emt 0:00:39]} Ba4 {[%emt 0:00:08]} 63. Ka5 {[%emt 0:00:42]} Bc2 {[%emt 0:00:32]} 64. Kb4 {[%emt 0:00:21]} Kxh4 {[%emt 0:00:39]} 65. Bc4 {[%emt 0:00:14]} Kg5 {[%emt 0:00:31]} 66. Bb3 {[%emt 0:00:33]} (66. Kc5 $14) 66... Bxb3 $11 {[%emt 0:00:28] The position is equal.} 67. Kxb3 {[%emt 0:00:02] KP-K} Kf6 {[%emt 0:00:11]} 68. Kb4 {[%emt 0:00:08] Kc5 would kill now.} Ke7 {[%emt 0:00:08]} 69. Kb5 {[%emt 0:00:12] White threatens Kb6 and mate.} Kd8 {[%emt 0:00:15]} 70. Kb6 {[%emt 0:00:10]} (70. Kc6 $5 Kc8 $8 71. Kd6 $11) 70... Kc8 {[%emt 0:00:07]} 71. Ka7 {[%emt 0:00:07]} (71. a4 $5) 71... Kc7 {[%emt 0:00:04]} 72. a4 {[%emt 0:00:08][%cal Ba3a4,Ba4a5,Ba5a6,Ba6a7][%mdl 32]} Kc8 {[%emt 0:00:11]} 73. a5 {[%emt 0:00:04]} Kc7 {[%emt 0:00:03]} 74. a6 {[%emt 0:00:05]} Kc8 {[%emt 0:00:04]} 75. Ka8 {[%emt 0:00:09]} (75. Kb6 $5 Kb8 $8 76. Kc6 $11) 75... Kc7 {[%emt 0:00:05]} 76. a7 {[%emt 0:00:04]} (76. Ka7 $5) 76... Kc8 {[%emt 0:00:33] Black defended with fortune.   Weighted Error Value: White=0.10 (very precise) /Black=0.24 (precise) .  Mistake:       	White=1     	Black=6      Inaccurate:     	White=1     	Black=2      OK:         	White=21    	Black=10     Best:        	White=2     	Black=8      Strong:       	White=1     	---} 1/2-1/2

[Event "1000GM Schev-G5 April 2024"]
[Site "Santa Clara"]
[Date "2024.04.22"]
[Round "5.3"]
[White "Rodriguez Hernandez, Jose Angel"]
[Black "Qi, Jenny"]
[Result "1-0"]
[ECO "B25"]
[WhiteElo "1992"]
[BlackElo "1761"]
[Annotator "TA"]
[PlyCount "83"]
[EventDate "2024.03.06"]
[EventType "schev"]
[EventCountry "USA"]
[SourceTitle "playchess.com"]
[Source "ChessBase"]
[SourceQuality "1"]
[TimeControl "5400+30"]

{[%evp 10,82,12,-8,0,-15,-9,-20,-19,-29,-30,-44,-28,-52,-41,-64,-41,-56,-60,-58,-52,-38,-44,-35,-32,-47,-41,-38,-14,-30,0,0,0,0,0,0,0,0,0,0,77,75,88,89,108,83,144,132,137,150,380,250,263,187,392,359,1308,1169,1177,1135,1084,686,673,370,748,744,29978,29979,29993,29994,29996,29997,29997,29998,29999]} 1. e4 {[%emt 0:03:42]} c5 {[%emt 0:00:29]} 2. Nc3 {[%emt 0:00:45]} Nc6 {[%emt 0:00:12]} 3. g3 {[%emt 0:00:12]} g6 {[%emt 0:00:47]} 4. Bg2 {[%emt 0:00:06]} Bg7 {[%emt 0:00:14]} 5. d3 {[%emt 0:00:07]} d6 {[%emt 0:00:51]} 6. Bd2 {[%emt 0:00:52]} Rb8 {[%emt 0:01:48]} 7. Nf3 {[%emt 0:00:51]} e5 {[%emt 0:02:03]} 8. O-O {[%emt 0:00:14]} Nge7 {[%emt 0:00:29] The position is equal.} 9. h3 {[%emt 0:00:38]} O-O {[%emt 0:05:18]} 10. Nh2 {[%emt 0:00:31]} f5 {[%emt 0:04:02]} 11. f4 {[%emt 0:00:36]} fxe4 {[%emt 0:08:34]} 12. dxe4 {[%emt 0:00:36]} b5 {[%emt 0:05:26]} 13. fxe5 {[%emt 0:18:24]} Nxe5 {[%emt 0:08:15]} (13... Bxe5 $6 14. Nf3 $14) 14. Bg5 {[%emt 0:01:28]} Nf7 {[%emt 0:14:57]} 15. Bf6 {[%emt 0:03:13]} Bxf6 {[%emt 0:05:48]} 16. Rxf6 {[%emt 0:00:18]} b4 {[%emt 0:02:54]} 17. Ne2 {[%emt 0:03:10]} Nc6 {[%emt 0:07:39]} 18. Rf2 {[%emt 0:01:29]} Nce5 {[%emt 0:02:29]} 19. Nf4 {[%emt 0:00:45]} Qg5 {[%emt 0:02:45]} 20. Nf1 {[%emt 0:01:00][%cal Bh2f1,Bf1e3,Be3c4][%mdl 32]} Nc4 {[%emt 0:03:32]} 21. b3 {[%emt 0:00:56]} Na3 {[%emt 0:00:47]} 22. Kh2 {[%emt 0:04:38]} Nb5 {[%emt 0:01:18]} 23. Ne3 {[%emt 0:03:27]} Nd4 {[%emt 0:00:34]} 24. a3 $1 {[%emt 0:02:22] [#] axb4 would now be deadly.} bxa3 {[%emt 0:02:26]} (24... a5 $11 {remains equal.}) 25. Rxa3 $16 {[%emt 0:02:38]} Nb5 {[%emt 0:00:31]} 26. Ra1 $36 {[%emt 0:00:31][%mdl 2048] White is really pushing.} Qe5 {[%emt 0:01:40]} 27. Nc4 {[%emt 0:01:17]} Qg5 {[%emt 0:03:58]} (27... Qg7 $142) 28. Qd2 {[%emt 0:15:16]} a6 {[%emt 0:01:41]} 29. Raf1 {[%emt 0:00:39] White is more active.} Bd7 $2 {[%emt 0:01:24] Loses the game.} (29... Bb7 $16 {might work better.} 30. h4 Qe7) 30. Qa5 {[%emt 0:01:22]} Ne5 {[%emt 0:02:17]} 31. Nxe5 {[%emt 0:02:56]} dxe5 {[%emt 0:00:43]} (31... Qxe5 {was called for.} 32. Nd3 (32. Qxa6 Qd4 $18) 32... Qe7) 32. Nd5 {[%emt 0:00:09] Hoping for Rxf8+.} Nd6 $2 {[%emt 0:01:41]} (32... Rxf2 33. Rxf2 Kg7) 33. Nf6+ {[%emt 0:01:10]} Rxf6 {[%emt 0:00:58]} 34. Rxf6 {[%emt 0:00:06][%cal Oa5c7] Strongly threatening Qc7!} Nf5 {[%emt 0:00:16]} 35. exf5 {[%emt 0:01:10]} (35. Rxa6 $2 Qxg3+ 36. Kg1 Nh4 $19 (36... Ne3 37. Rf2 $11)) 35... Qxf6 {[%emt 0:00:11]} 36. fxg6 {[%emt 0:00:05]} Qxg6 {[%emt 0:00:56]} (36... Qd6 37. gxh7+ Kh8) 37. Qc7 $18 {[%emt 0:00:23]} Qe8 {[%emt 0:00:41]} 38. Bd5+ {[%emt 0:00:33] White mates.} Kh8 {[%emt 0:00:46] [#]} 39. Rf8+ $3 {[%emt 0:00:46][%mdl 512]} Qxf8 {[%emt 0:00:16]} (39... Kg7 40. Rxe8) 40. Qxe5+ {[%emt 0:00:05]} (40. Qxd7 $2 {is the wrong capture.} Rd8 41. Qb7 Qf2+ 42. Bg2 Rg8 $19 (42... Qxc2 43. Qe7 $11)) 40... Qg7 {[%emt 0:00:14]} 41. Qxb8+ {[%emt 0:00:04]} Qf8 {[%emt 0:00:09]} 42. Qxf8# {[%emt 0:00:04] Weighted Error Value: White=0.50/Black=0.43.  Loses game:     	---       	Black=1      Mistake:       	---       	Black=4      Inaccurate:     	White=1     	Black=2      OK:         	White=11    	Black=10     Best:        	---       	Black=1      Strong:       	White=1     	---} 1-0

[Event "1000GM Schev-G5 April 2024"]
[Site "Santa Clara"]
[Date "2024.04.22"]
[Round "5.4"]
[White "Wu, Jayden"]
[Black "Castro, Azalea"]
[Result "1/2-1/2"]
[ECO "C72"]
[WhiteElo "1932"]
[BlackElo "1975"]
[Annotator "TA"]
[PlyCount "92"]
[EventDate "2024.03.06"]
[EventType "schev"]
[EventCountry "USA"]
[SourceTitle "playchess.com"]
[Source "ChessBase"]
[SourceQuality "1"]
[TimeControl "5400+30"]

{[%evp 13,92,48,66,0,0,0,0,-76,-66,-117,-119,-109,-110,-116,-66,-85,-99,-78,-6,0,0,0,0,-63,-71,-73,-81,-131,-66,-177,-130,-332,0,-169,-118,-135,-112,-144,-104,-143,-127,-170,-173,-177,-169,-226,-194,-250,-182,-186,-15,-12,0,0,0,0,0,-142,-152,-554,0,0,0,0,7,0,29,30,25,25,17,0,18,-54,-56,-64,-20,-42,0,-149,0]} 1. e4 {[%emt 0:00:10]} e5 {[%emt 0:00:12]} 2. Nf3 {[%emt 0:00:06]} Nc6 {[%emt 0:00:06]} 3. Bb5 {[%emt 0:00:04]} a6 {[%emt 0:00:11]} 4. Ba4 {[%emt 0:00:06]} d6 {[%emt 0:00:22]} 5. O-O {[%emt 0:01:38]} Bg4 {[%emt 0:00:27]} 6. h3 {[%emt 0:01:05]} h5 {[%emt 0:00:50]} 7. Bxc6+ {[%emt 0:01:21]} bxc6 {[%emt 0:00:10]} 8. d3 {[%emt 0:01:07]} (8. hxg4 hxg4 9. Re1 Qf6 $15 (9... gxf3 10. Qxf3 Qh4 11. g3 $15)) (8. d4 $1 $14) 8... Qf6 $1 $11 {[%emt 0:03:42][%cal Of8e7]} 9. Nbd2 {[%emt 0:16:46]} g5 {[%emt 0:06:23]} 10. Qe1 {[%emt 0:05:57]} (10. d4 $11 {remains equal.}) 10... Bd7 $17 {[%emt 0:04:00]} 11. Nc4 {[%emt 0:14:01]} (11. Kh2 $15) 11... g4 $1 {[%emt 0:02:50]} 12. Nh2 {[%emt 0:02:12]} (12. Bg5 $2 Qg7 13. Nfxe5 gxh3 $19 (13... Qxg5 $2 14. h4 $19)) 12... gxh3 {[%emt 0:00:32]} 13. g3 {[%emt 0:00:15]} Nh6 {[%emt 0:06:09]} (13... Be7 $17 14. f4 Qg7) 14. f4 $15 {[%emt 0:02:13]} Qg7 {[%emt 0:03:39]} 15. f5 {[%emt 0:12:58]} h4 {[%emt 0:03:14]} ({Black should play} 15... Rg8 $17 16. Rf3 (16. Bxh6 $2 Qxg3+ 17. Qxg3 Rxg3+ 18. Kf2 Rg2+ 19. Kf3 Bxh6 $19) 16... Ng4 17. Nxg4 Qxg4 (17... hxg4 18. Rf2 $15)) 16. Bxh6 $11 {[%emt 0:01:42]} Rxh6 {[%emt 0:01:46]} 17. g4 {[%emt 0:00:10]} Be7 {[%emt 0:05:01]} 18. Nd2 {[%emt 0:03:44]} (18. Kh1 $11) 18... Bg5 $15 {[%emt 0:08:16]} 19. Ndf3 {[%emt 0:01:05]} Bf4 {[%emt 0:00:59]} 20. Qe2 {[%emt 0:06:05]} (20. Kh1 $142) 20... c5 {[%emt 0:04:23]} (20... f6 $17 21. Kh1 O-O-O) 21. Kf2 {[%emt 0:01:26]} (21. g5 $15) 21... Bg3+ {[%emt 0:00:49] This pair of bishops is nice.} (21... d5 $19 {White must now prevent ...0-0-0.} 22. Rg1 O-O-O 23. exd5 Rd6) 22. Ke3 $2 {[%emt 0:00:53]} (22. Kg1 $17 {is the only way for White.}) 22... Bf4+ {[%emt 0:07:36]} (22... d5 $142 23. g5 dxe4 24. dxe4 (24. gxh6 $2 {gets mated.} Bf4+ 25. Kxe4 Bc6#) 24... Rh5) 23. Kf2 $19 {[%emt 0:00:13]} Rb8 {[%emt 0:02:37]} ({Black should try} 23... f6 $19 {[%cal Od6d5]} 24. Kg1 O-O-O) 24. b3 $17 {[%emt 0:03:24] White is weak on the dark squares} f6 {[%emt 0:01:42]} 25. Ke1 {[%emt 0:03:01]} Bc6 {[%emt 0:01:13]} 26. c4 {[%emt 0:01:50]} a5 {[%emt 0:02:13]} 27. Kd1 {[%emt 0:00:51]} a4 {[%emt 0:01:53]} 28. Kc2 {[%emt 0:00:12]} Rh8 {[%emt 0:02:33]} 29. Rh1 {[%emt 0:03:02]} (29. Rfb1 {keeps fighting.}) 29... Ke7 {[%emt 0:03:55]} 30. Qf1 {[%emt 0:02:24]} (30. Qf2 {was worth a try.}) 30... axb3+ {[%emt 0:04:13]} 31. axb3 {[%emt 0:00:07]} Bxh2 $2 {[%emt 0:03:01]} (31... Qg8 $1 $19 {...Qc8 is the strong threat.} 32. Qxh3 Rxb3) 32. Nxh2 {[%emt 0:00:25]} Ra8 {[%emt 0:01:49] Threatens to win with ...Rxa1.} 33. Qxh3 {[%emt 0:01:10]} Qg5 {[%emt 0:02:11]} 34. Qf3 {[%emt 0:02:39]} Rag8 {[%emt 0:03:28]} 35. Kd1 {[%emt 0:02:23]} (35. Qf2 $11) 35... Rb8 $1 {[%emt 0:01:55]} 36. Kc2 {[%emt 0:00:22] [#]} (36. Rb1 $17 {is tougher.}) 36... Rbg8 $2 {[%emt 0:02:57]} (36... Rxb3 $1 $19 {[%cal Ob3b2] ( -> ...Rb2+!)} 37. Nf1 (37. Kxb3 {leads to mate.} Qd2) 37... Rhb8) 37. Rhe1 {[%emt 0:01:43]} h3 {[%emt 0:01:49]} 38. Qe3 {[%emt 0:00:50]} Qxe3 {[%emt 0:01:50]} 39. Rxe3 {[%emt 0:00:01]} Rh4 {[%emt 0:01:43]} 40. Rg1 {[%emt 0:03:40]} Be8 {[%emt 0:00:53]} 41. Rgg3 {[%emt 0:01:00]} Rgh8 {[%emt 0:01:26]} 42. Ref3 {[%emt 0:00:45]} Bf7 {[%emt 0:01:19]} 43. g5 {[%emt 0:06:54]} (43. Rf1 $11) 43... fxg5 $15 {[%emt 0:05:43]} 44. Rxg5 {[%emt 0:00:30]} Kf6 {[%emt 0:00:30]} 45. Rgg3 {[%emt 0:00:30]} Bh5 {[%emt 0:00:30]} 46. Re3 {[%emt 0:00:30] [#]} (46. Rf1 $11 {keeps the balance.}) 46... Bf7 {Weighted Error Value: White=0.47/Black=0.46.  Loses game:     	White=3     	---        Missed win:     	---       	Black=2      Mistake:       	White=10    	Black=7      Inaccurate:     	White=1     	Black=3      OK:         	White=12    	Black=7      Best:        	White=1     	Black=2      Strong:       	---       	Black=3} (46... Rf4 $1 $17 {[%cal Rf4f2]} 47. Kb1 Rf2 48. Rg6+ (48. Rxh3 $2 {loses.} Rg8 $19) 48... Bxg6 49. Ng4+ Ke7 (49... Kg5 50. Nxf2 Bxf5 51. exf5 $11) 50. Nxf2 h2) 1/2-1/2

[Event "1000GM Schev-G5 April 2024"]
[Site "Santa Clara"]
[Date "2024.04.22"]
[Round "5.5"]
[White "Pulijala, Akshaj"]
[Black "Garduno Huerta, Joshua Emiliano"]
[Result "1/2-1/2"]
[ECO "D00"]
[WhiteElo "1833"]
[BlackElo "1962"]
[Annotator "TA"]
[PlyCount "76"]
[EventDate "2024.03.06"]
[EventType "schev"]
[EventCountry "USA"]
[SourceTitle "playchess.com"]
[Source "ChessBase"]
[SourceQuality "1"]
[TimeControl "5400+30"]

{[%evp 9,76,22,22,8,22,16,10,-16,33,0,0,0,33,17,76,82,76,81,78,56,108,52,56,49,132,-3,83,84,81,90,90,97,88,88,107,87,136,85,110,45,57,49,110,116,106,4,56,0,0,-68,0,-11,-20,-16,-16,-15,-16,-11,-19,-16,0,-16,0,0,0,0,0,-29994,409]} 1. d4 {[%emt 0:00:05]} d5 {[%emt 0:00:27]} 2. Nc3 {[%emt 0:00:05]} Nf6 {[%emt 0:01:17]} 3. Bf4 {[%emt 0:00:04]} Bf5 {[%emt 0:02:09]} 4. f3 {[%emt 0:00:08]} e6 {[%emt 0:00:14]} 5. g4 {[%emt 0:00:34]} Bg6 {[%emt 0:00:18]} 6. h4 {[%emt 0:00:02] h5 would now be deadly.} h6 {[%emt 0:01:54]} 7. e3 {[%emt 0:00:08]} Bd6 {[%emt 0:02:00]} 8. Nge2 {[%emt 0:04:55] The position is equal.} a6 {[%emt 0:00:17]} (8... Nc6 $11) 9. Bxd6 {[%emt 0:01:39]} Qxd6 {[%emt 0:00:41]} 10. Nf4 {[%emt 0:00:32]} Nbd7 {[%emt 0:00:35]} 11. Qd2 {[%emt 0:04:40]} b5 {[%emt 0:07:01]} (11... O-O-O $11) 12. Nxg6 $16 {[%emt 0:04:00]} fxg6 {[%emt 0:00:08]} 13. Bd3 {[%emt 0:01:48]} Kf7 {[%emt 0:01:15]} 14. O-O-O {[%emt 0:00:59]} Nb6 {[%emt 0:00:12]} (14... c5 $14) 15. g5 {[%emt 0:05:54]} (15. e4 $16 {aiming for e5.} dxe4 16. Nxe4 (16. Bxe4 $2 Nc4 $19) 16... Nxe4 17. Bxe4 (17. fxe4 Ke7 $14)) 15... hxg5 $1 $14 {[%emt 0:02:52]} 16. Rdg1 {[%emt 1:12:57]} (16. hxg5 Nfd7 $16) 16... Nc4 {[%emt 1:17:10]} (16... Rxh4 $14 17. Bxg6+ Ke7) 17. Qg2 {[%emt 0:00:00]} (17. Bxc4 $16 bxc4 18. Rxg5 (18. hxg5 Nh5 $16)) 17... g4 {[%emt 0:00:00]} (17... Nxb2 $1 $11 18. Kxb2 Qb4+ 19. Kc1 Qxc3) 18. Nd1 $16 {[%emt 0:00:00]} (18. fxg4 $6 Nxb2 19. Kxb2 Qb4+ 20. Kc1 (20. Ka1 Qxc3+ 21. Kb1 Qb4+ 22. Ka1 Raf8 $11) 20... Qxc3 $11) 18... e5 {[%emt 0:00:00][%cal Be6e5,Be5e4][%mdl 32]} 19. fxg4 {[%emt 0:00:00]} e4 {[%emt 0:00:00]} 20. Bxc4 {[%emt 0:00:00]} bxc4 {[%emt 0:00:00]} 21. Rf1 {[%emt 0:00:00]} (21. g5 Nh5 $11) 21... Ke7 {[%emt 0:00:00] [#]} 22. h5 $1 {[%emt 0:00:00][%mdl 512]} Qe6 {[%emt 0:00:00]} (22... Nd7 $142) (22... Raf8 23. Nc3) 23. Rhg1 {[%emt 0:00:00]} ({Don't do} 23. hxg6 Rxh1 24. Rxh1 Qxg4 $14) (23. Nc3 $142) 23... Qd6 {[%emt 0:00:00]} 24. Rf4 {[%emt 0:00:00]} (24. hxg6 Rh2 25. Qg3 Qxg3 26. Rxg3 Rf8 $18) (24. Nc3 $16) 24... Raf8 $14 {[%emt 0:00:00]} 25. Rgf1 {[%emt 0:00:00]} Nh7 {[%emt 0:00:00]} ({Don't play} 25... gxh5 26. gxh5 Rf7 27. Rh4 $16) (25... Nd7 $14) 26. hxg6 $16 {[%emt 0:00:00]} Ng5 {[%emt 0:00:00]} 27. Nc3 {[%emt 0:00:00] Some like it hot} ({White should try} 27. Rxf8 $16 Rxf8 28. Rxf8 Kxf8 29. Qd2) 27... c6 {[%emt 0:00:00]} (27... Rxf4 $11 28. Rxf4 c6) 28. Rf5 {[%emt 0:00:00]} (28. Rxf8 $14 Rxf8 29. Rxf8 Kxf8 30. Qh1 Qxg6 31. Qh8+ Ke7 32. Qc8) 28... Nf3 $11 {[%emt 0:00:00] ...Rh2 is the strong threat.} 29. Rh1 {[%emt 0:00:00]} ({Better is} 29. Rh5 $11) 29... Qxg6 {[%emt 0:00:00]} (29... Rxh1+ $1 $15 30. Qxh1 Rxf5 31. gxf5 Qg3) 30. Rxh8 {[%emt 0:00:00]} Rxh8 {[%emt 0:00:00]} 31. Qg3 {[%emt 0:00:00]} Qd6 $40 {[%emt 0:00:00][%mdl 128] Black has some attack.} 32. Rf7+ $1 {[%emt 0:00:00]} Ke6 $1 {[%emt 0:08:00][%cal Be7e6,Be6d6,Bd6d7][%mdl 32]} 33. Qxd6+ {[%emt 0:08:30]} Kxd6 {[%emt 0:00:30]} 34. Rxg7 {KRN-KRN} Rh1+ {[%emt 0:00:30]} 35. Nd1 {[#]} Nxd4 $1 {[%emt 0:00:30]} 36. exd4 {[%emt 0:01:30] Threatens to win with Kd2.} e3 37. Rg6+ Kd7 $1 {[%emt 0:01:00] ( -> ...e2)} 38. Rg8 $2 {[%mdl 8192]} (38. Rg7+ $11 Kd6 39. Rg6+ Kd7 40. Rg7+ Kd6) 38... Ke7 $4 {[%emt 0:00:30][%mdl 40960] Weighted Error Value: White=0.39/Black=0.24 (precise) .  Loses game:     	White=1     	---        Missed win:     	---       	Black=1      Mistake:       	White=7     	Black=9      Inaccurate:     	White=2     	Black=1      OK:         	White=10    	Black=9      Best:        	White=5     	Black=1      Strong:       	White=1     	Black=3     . An unexpected result.} (38... e2 39. Rg7+ Ke8 40. b3 c3 (40... exd1=R+ $2 41. Kb2 $19) (40... exd1=N $2 41. bxc4 dxc4 42. Kd2 $19) (40... exd1=B $2 41. Kd2 $19) 41. Rg8+ Kf7 42. Rf8+ Kxf8 43. g5 exd1=Q#) 1/2-1/2